Cogmind - Beta 15 @@@ ROGUE MODE // 2025.05.18 @ 00:07:47 Player: morimori Result: Destroyed by P-80 Master with Gamma Rifle Performance ------------- Evolutions (8) 4000 Regions Visited (30) 6000 Robots Destroyed (153) 765 Value Destroyed (4639) 4639 Prototype IDs (44) 880 Alien Tech Used (2) 400 Bonus (2621) 2621 TOTAL SCORE: 19305 Bonus ------- High Alert Combat Kills 16 Follower Combat Kills 1668 Network Hubs Disabled 200 Met Zhirov 300 Met Warlord at Base 500 MAIN.C Attacked Warlord 500 Warlord Defense Kills 94 Built Enhanced Grunts 300 Friendly Fire -957 Cogmind --------- Core Integrity 0/1450 Matter 206/300 Energy 99/100 System Corruption 7% Temperature Cool (0) Movement Core (50) Location -2/Research Parts ------- > --- POWER (2) -------- (None) > --- PROPULSION (6) --- (None) > --- UTILITY (11) ----- Experimental Targeting Computer Experimental Core Analyzer > --- WEAPON (4) ------- (None) > --- INVENTORY (5) ---- Light Antimatter Reactor Advanced Sensor Array Heavy Machine Gun Improved KE Penetrator Improved KE Penetrator Peak State ------------ > --- POWER ------------ Micro Antimatter Reactor Micro Antimatter Reactor > --- PROPULSION ------- Cooled Gravmag System Improved Antigrav System Improved Antigrav System Cooled Antigrav System Antigrav Array > --- UTILITY ---------- High-capacity Storage Unit Advanced Sensor Array Advanced Signal Interpreter Improved Terrain Scanner Advanced Terrain Scan Processor Improved Armor Integrity Analyzer Experimental Utility Shielding Experimental Focal Shield Advanced Hacking Suite Advanced Hacking Suite Advanced Hacking Suite > --- WEAPON ----------- High-powered Disruptor Cannon > --- INVENTORY -------- Micro Antimatter Reactor Advanced Coolant Injector High-capacity Storage Unit Huge Storage Unit Experimental Matter Compressor Advanced Targeting Computer Experimental Targeting Computer Precision Energy Filter Precision Energy Filter Advanced Weapon Cycler Authchip [Power] Authchip [Device] Authchip [Processor] Authchip [Armor] Vortex Rail Vortex Rail Vortex Rail Nova Cannon Gamma Bomb Array [Rating: 157] Favorites ----------- Power Micro Fission Core Engine Improved Ion Engine Power Core Micro Fission Core Reactor Antimatter Reactor Propulsion Antigrav System Treads Advanced Heavy Treads Leg Flexi-carbon Leg Wheel Wheel Hover Unit Antigrav System Flight Unit Field Propulsion Drive Utility Advanced Hacking Suite Device Improved Terrain Scanner Storage High-capacity Storage Unit Processor Improved Signal Interpreter Hackware Advanced Hacking Suite Protection Experimental Utility Shielding Weapon Improved Medium Laser Energy Gun Improved Medium Laser Energy Cannon Heavy Phase Cannon Ballistic Gun Enhanced Autogun Ballistic Cannon Enhanced Gauss Cannon Launcher Heavy Shock Bomb Launcher Special Weapon Plasma Flamer Impact Weapon Great Maul Slashing Weapon Phasing Sabre Build | -11 -10 -10 -9 -9 -8 -7 -7 -7 -7 -7 -6 -6 -6 -6 -6 -5 -5 -5 -5 -5 -5 -4 -4 -4 -4 -4 -3 -3 -3 -2 ------- Run | Yrd Mat Min Mat Min Mat Fac Was Fac Low Low Fac Ext Cet Arc Hub Fac Was Fac Upp Upp War Pro Fac Upp Upp Zhi Pro Res Tes Res Slots Evolved 16 | . . . 2 . 2 2 . . . . 2 . . . . 2 . . . . . . 2 . . . . 2 . 2 Power 1 | . . . . . . . . . . . 1 . . . . . . . . . . . . . . . . . . . Propulsion 4 | . . . . . 2 1 . . . . 1 . . . . . . . . . . . . . . . . . . . Utility 9 | . . . 2 . . 1 . . . . . . . . . 2 . . . . . . 2 . . . . 2 . . Weapon 2 | . . . . . . . . . . . . . . . . . . . . . . . . . . . . . . 2 Parts Attached 245 | 7 13 7 23 1 17 13 . 12 2 1 10 20 1 12 1 9 1 12 4 1 15 1 14 1 3 3 . 15 13 13 Power 31 | 1 2 1 4 . 2 1 . . . . 2 3 . 1 . 3 . 2 2 . . . 1 . . 1 . 3 1 1 Engine 14 | 1 2 1 4 . 2 . . . . . . 1 . . . 1 . 1 1 . . . . . . . . . . . Core 9 | . . . . . . 1 . . . . 2 2 . 1 . 1 . 1 1 . . . . . . . . . . . Reactor 8 | . . . . . . . . . . . . . . . . 1 . . . . . . 1 . . 1 . 3 1 1 Propulsion 71 | 2 2 1 6 . 3 6 . 4 . . 1 12 . 5 . 3 1 4 . . 7 . 4 . . . . 4 3 3 Treads 1 | . . . . . . . . . . . . . . . . . . . . . . . . . . . . . . 1 Leg 12 | . . . . . . . . . . . . 12 . . . . . . . . . . . . . . . . . . Wheel 16 | 2 2 1 6 . 2 . . . . . . . . . . . . . . . . . . . . . . . 2 1 Hover 41 | . . . . . 1 6 . 4 . . 1 . . 5 . 3 1 4 . . 7 . 4 . . . . 4 1 . Flight 1 | . . . . . . . . . . . . . . . . . . . . . . . . . . . . . . 1 Utility 87 | 2 4 2 4 . 5 4 . 7 1 1 6 1 . 5 . 3 . 4 1 . 5 1 8 . 2 2 . 7 5 7 Device 31 | 1 1 2 1 . 3 1 . 3 . 1 . . . 3 . 1 . 2 1 . 2 1 2 . . 2 . 1 2 1 Storage 8 | 1 2 . 1 . . 1 . . . . . . . . . . . . . . . . 1 . . . . . 1 1 Processor 19 | . 1 . 2 . 1 2 . 3 . . . 1 . 1 . . . . . . 1 . 1 . 2 . . . 1 3 Hackware 27 | . . . . . . . . 1 1 . 6 . . 1 . 2 . 2 . . 2 . 4 . . . . 5 1 2 Protection 2 | . . . . . 1 . . . . . . . . . . . . . . . . . . . . . . 1 . . Artifact . | . . . . . . . . . . . . . . . . . . . . . . . . . . . . . . . Weapon 56 | 2 5 3 9 1 7 2 . 1 1 . 1 4 1 1 1 . . 2 1 1 3 . 1 1 1 . . 1 4 2 Energy Gun 18 | 1 4 1 5 . 3 . . . . . . . . 1 . . . . . . 2 . . . . . . . 1 . Energy Cannon 11 | . . . . 1 1 . . . . . 1 1 . . 1 . . 1 . 1 . . 1 . . . . . 3 . Ballistic Gun 11 | 1 1 . 2 . 2 2 . . . . . 1 . . . . . . . . . . . . . . . . . 2 Ballistic Cannon 3 | . . . . . . . . . . . . 1 . . . . . . 1 . . . . 1 . . . . . . Launcher 10 | . . 1 2 . . . . 1 1 . . . 1 . . . . 1 . . 1 . . . 1 . . 1 . . Special Weapon 1 | . . 1 . . . . . . . . . . . . . . . . . . . . . . . . . . . . Impact Weapon 1 | . . . . . 1 . . . . . . . . . . . . . . . . . . . . . . . . . Slashing Weapon 1 | . . . . . . . . . . . . 1 . . . . . . . . . . . . . . . . . . Piercing Weapon . | . . . . . . . . . . . . . . . . . . . . . . . . . . . . . . . Special Melee Weapon . | . . . . . . . . . . . . . . . . . . . . . . . . . . . . . . . Unidentified Prototypes 18 | . . . 2 . 3 . . 1 . . . . 1 . . . . . . . 4 . 1 . . 3 . . 2 1 Parts Lost 79 | . 3 . 2 . 1 1 . . . 1 5 12 1 . 1 1 . 13 4 . 1 . 3 1 . . . 3 16 10 Power 8 | . . . . . . . . . . . 1 2 1 . . . . . 2 . . . 1 . . . . . 1 . Propulsion 35 | . 1 . 1 . . 1 . . . . 3 6 . . 1 1 . 7 1 . . . 2 . . . . 1 6 4 Utility 24 | . 1 . . . . . . . . 1 . 1 . . . . . 4 1 . 1 . . 1 . . . 1 8 5 Weapon 12 | . 1 . 1 . 1 . . . . . 1 3 . . . . . 2 . . . . . . . . . 1 1 1 Highest Loss Streak 15 | . 2 . 1 . 1 1 . . . 1 5 3 1 . 1 1 . 11 2 . 1 . 1 1 . . . 2 15 6 To Critical Strikes 2 | . . . . . . . . . . . . . . . . . . . . . . . . . . . . . 1 1 Average Backups 17 | 4 10 19 23 25 24 15 15 15 15 15 14 17 19 18 18 15 14 14 14 14 17 18 18 19 19 19 19 19 17 4 Power . | 1 1 1 1 1 1 1 1 1 1 1 . . 1 . . 1 1 1 . . . 1 . . . . 1 1 . . Propulsion 2 | 1 4 6 6 7 5 1 1 1 1 1 . 1 3 2 1 . . . . . . 1 . 1 1 . . . . . Utility 10 | . 3 7 7 8 9 7 9 10 10 10 10 12 13 13 13 11 11 11 12 13 13 13 14 15 15 14 14 12 12 1 Weapon 3 | . 1 4 8 8 7 5 4 2 2 3 2 1 2 3 4 2 2 1 1 1 2 3 3 3 3 3 3 3 3 2 Tool/Special . | . . . . . . . . . . . . . . . . . . . . . . . . . . . . . . . Unused Backups 56 | . 6 1 7 . 11 4 . 4 1 . 1 1 . . . 3 . 2 . . 1 . 3 . 1 1 . 2 5 2 Power 9 | . 2 . 1 . 2 2 . . . . . . . . . . . . . . . . 1 . . . . 1 . . Propulsion 6 | . 3 . 1 . . . . 1 . . . 1 . . . . . . . . . . . . . . . . . . Utility 23 | . 1 1 3 . 1 . . 2 1 . 1 . . . . 2 . 2 . . 1 . 1 . . 1 . 1 5 . Weapon 18 | . . . 2 . 8 2 . 1 . . . . . . . 1 . . . . . . 1 . 1 . . . . 2 Tool/Special . | . . . . . . . . . . . . . . . . . . . . . . . . . . . . . . . Average Slot Usage (%) 86 | . 93 100 99 100 83 99 100 99 100 98 98 82 84 91 93 92 90 89 46 47 73 100 87 78 81 81 86 87 75 35 Engine 4 | . 14 14 10 11 9 4 . . . . . 2 . . . . . 1 1 . 3 5 2 . . . . . . . Core 3 | . . . . . . 2 7 7 7 7 12 8 7 12 13 9 11 8 4 5 5 5 3 . . . . . . . Leg 2 | . . . . . . . . . . . . 31 40 11 . . . . . . . . . . . . . . . . Wheel 6 | . 22 28 21 22 20 . . . . . . . . . . . . . . . . . . . . . . . . 4 Hover 16 | . . . . . . 37 38 38 38 38 39 2 . 27 40 34 31 33 6 5 18 35 30 26 26 27 31 26 18 . Device 8 | . 5 14 11 11 8 7 7 12 15 13 5 . . 2 6 10 11 9 10 11 8 7 9 9 10 10 10 10 8 1 Storage 7 | . 14 14 11 11 9 7 7 7 7 7 6 6 6 6 6 5 5 5 5 5 5 5 5 5 5 5 5 4 3 1 Processor 12 | . 7 . 21 22 18 22 23 16 11 7 6 9 13 9 13 11 11 11 11 11 13 14 10 10 11 15 15 14 12 15 Hackware 6 | . . . . . . . . . 3 7 13 13 13 12 6 10 11 10 . . 7 11 14 19 15 15 15 17 14 5 Energy Gun 5 | . 16 9 20 16 16 3 . . . . . . . 5 . . . . . . . . . . . . 2 . . . Energy Cannon 1 | . . . . 4 . . . . . . 3 . . . 1 5 5 4 . 1 4 5 4 . . . . . 2 . Ballistic Gun 3 | . 11 9 . . . 11 15 10 14 14 8 3 . . . . . . . . . . . . . . . . . . Peak Build Rating 157 | 7 11 16 26 26 47 48 48 58 59 59 69 70 72 75 72 79 82 89 51 46 102 102 119 101 107 125 123 147 157 82 Average Rating 57 | 6 8 12 22 25 42 45 48 52 57 57 65 57 63 65 69 74 78 82 47 45 74 102 103 93 97 100 103 123 116 50 On Entrance 59 | . 7 9 14 24 26 46 44 48 56 56 59 47 69 69 72 62 75 82 43 46 46 102 102 90 93 95 125 105 117 10 Naked Turns 1 | . . . . . . . . . . . . . . . . . . . . . . . . . . . . . 1 . Heaviest Build 99 | 14 47 50 97 97 99 92 33 42 46 41 48 71 65 75 75 76 47 57 46 38 67 68 68 67 76 73 72 68 73 23 Greatest Support 115 | 20 20 20 26 24 56 36 36 40 40 40 49 115 115 115 52 56 58 60 31 20 70 70 70 63 63 63 57 75 74 26 Greatest Overweight (x) 4 | 3 4 2 4 4 2 2 . 1 1 1 1 4 . 2 1 1 . 1 2 1 2 . 1 1 1 1 1 1 4 1 Average Overweight (x) . | . 1 2 2 3 1 . . . . . . . . . 1 . . . 1 1 . . . . . . . . . . Largest Inventory Capacity 25 | 8 20 20 25 25 25 25 15 15 15 15 15 20 20 20 20 20 15 15 15 15 20 20 20 20 20 20 20 20 20 10 Average Capacity 18 | 7 14 20 23 25 25 16 15 15 15 15 15 18 20 20 20 16 15 15 15 15 17 20 20 20 20 20 20 20 18 6 Most Carried 25 | 6 15 20 25 25 25 25 15 15 15 15 15 20 20 20 20 20 15 15 15 15 20 19 20 20 20 20 20 20 20 5 Average Carried 17 | 4 10 19 23 24 24 15 15 14 14 15 14 17 19 19 19 16 14 14 14 14 17 19 19 19 19 19 19 19 17 4 Final Capacity 25 | 8 20 20 25 25 25 15 15 15 15 15 15 20 20 20 20 15 15 15 15 15 20 20 20 20 20 20 20 20 5 5 Final Carried 25 | 6 14 20 25 25 25 15 15 15 15 15 15 20 20 18 20 15 15 15 14 15 19 19 20 19 20 18 20 20 5 5 Class Distribution -------------------- 38% | Mutant 18% | Hacker-Mutant 11% | Scavenger-Mutant 11% | Hacker-Scout 8% | Scout 3% | Hacker-Sprinter Dominant Class ---------------- Mutant | -10/Materials Scavenger-Mutant | -10/Mines Mutant | -9/Materials Mutant | -9/Mines Mutant | -8/Materials Scout | -7/Factory Scout | -7/Waste Scout | -7/Factory Scout | -7/Lower Caves Mutant | -7/Lower Caves Hacker-Sprinter | -6/Factory Hacker-Mutant | -6/Extension Hacker-Mutant | -6/Cetus Scavenger-Mutant | -6/Archives Scavenger-Mutant | -6/Hub_04(d) Hacker-Scout | -5/Factory Hacker-Scout | -5/Waste Hacker-Scout | -5/Factory Mutant | -5/Upper Caves Mutant | -5/Upper Caves Scavenger-Scout | -5/Warlord Hacker-Scout | -4/Proximity Caves Hacker-Scout | -4/Factory Hacker-Mutant | -4/Upper Caves Hacker-Skirmisher | -4/Upper Caves Hacker-Mutant | -4/Zhirov Hacker-Scout | -3/Proximity Caves Hacker-Scout | -3/Research Hacker-Scout | -3/Testing Mutant | -2/Research Resources | -11 -10 -10 -9 -9 -8 -7 -7 -7 -7 -7 -6 -6 -6 -6 -6 -5 -5 -5 -5 -5 -5 -4 -4 -4 -4 -4 -3 -3 -3 -2 ----------- Run | Yrd Mat Min Mat Min Mat Fac Was Fac Low Low Fac Ext Cet Arc Hub Fac Was Fac Upp Upp War Pro Fac Upp Upp Zhi Pro Res Tes Res Matter Collected 6638 | 282 157 165 572 30 354 183 . 375 96 163 127 491 61 285 200 130 10 24 364 177 224 10 50 368 289 409 58 700 176 108 Remotely . | . . . . . . . . . . . . . . . . . . . . . . . . . . . . . . . Salvage Created 6135 | 163 596 261 1231 91 339 182 . 234 40 22 36 428 178 218 293 . . 189 470 117 61 . 80 144 . 376 . 135 143 108 Parts 296 | 13 36 12 64 5 23 15 . 9 2 . 6 15 4 13 21 . . 17 5 1 6 . 5 . . 2 . 8 8 6 Haulers Intercepted 3 | . . . 1 . 1 . . . . . . . . . 1 . . . . . . . . . . . . . . . Recyclers Shooed 10 | . . 2 3 . . . . 1 . . . 1 . . . . . 1 . . . . 2 . . . . . . . Parts Field Recycled . | . . . . . . . . . . . . . . . . . . . . . . . . . . . . . . . Retrieved Matter . | . . . . . . . . . . . . . . . . . . . . . . . . . . . . . . . Parts Self-Destructed 7 | . . . . . . . . . 4 . . . . . . . . . . . . . . 3 . . . . . . Prevented . | . . . . . . . . . . . . . . . . . . . . . . . . . . . . . . . Kills | -11 -10 -10 -9 -9 -8 -7 -7 -7 -7 -7 -6 -6 -6 -6 -6 -5 -5 -5 -5 -5 -5 -4 -4 -4 -4 -4 -3 -3 -3 -2 ------- Run | Yrd Mat Min Mat Min Mat Fac Was Fac Low Low Fac Ext Cet Arc Hub Fac Was Fac Upp Upp War Pro Fac Upp Upp Zhi Pro Res Tes Res Combat Hostiles Destroyed 86 | . 11 6 28 2 10 1 . . . 3 . 5 2 . 1 . . 5 . . 1 . 2 . . . . 3 3 3 Guns 44 | . 11 2 18 . 8 1 . . . . . . . . . . . . . . . . . . . . . . 1 3 Cannons 4 | . . . . 2 . . . . . . . 1 . . . . . 1 . . . . . . . . . . . . AOE 28 | . . . 7 . 2 . . . . 3 . 3 . . 1 . . 4 . . 1 . 2 . . . . 3 2 . Classes Destroyed 17 | 2 5 . 4 . . 1 . . . . . 1 . . . . . . 1 2 1 . . . . . . . . . Worker 8 | . . . 1 . . . . . . . 1 . . . 4 . . . . . . . 1 . . . . . 1 . Builder 6 | . 1 . . . . . . . . . 1 . . . 1 . . 1 . . . . . . . . . 1 1 . Tunneler 6 | 3 1 1 1 . . . . . . . . . . . . . . . . . . . . . . . . . . . Hauler 3 | . . . 1 . 1 . . . . . . . . . 1 . . . . . . . . . . . . . . . Recycler 7 | 1 1 1 1 . . . . 2 . . . 1 . . . . . . . . . . . . . . . . . . Operator 16 | . 1 . 1 . . 1 . 2 . . . 1 . 9 1 . . . . . . . . . . . . . . . Watcher 18 | . 3 . 5 . 2 4 . 2 . . . . 1 . 1 . . . . . . . . . . . . . . . Swarmer 29 | . 3 . 7 . 6 . . . . 3 . . . . . . . 4 . . . . . . . . . 3 . 3 Grunt 32 | . 8 6 12 1 1 . . . . . . 3 . . . . . . . . . . . . . . . . 1 . Brawler 2 | . . . 1 1 . . . . . . . . . . . . . . . . . . . . . . . . . . Protector 1 | . . . . . . . . . . . . . . . . . . . . . 1 . . . . . . . . . Sentry 12 | . . . 8 . 3 . . . . . . 1 . . . . . . . . . . . . . . . . . . Hunter 4 | . . . . . . . . . . . . 1 . . 1 . . . . . . . . . . . . . 2 . Programmer 4 | . . . . . . 1 . . . . . . . . . . . 1 . . . . 2 . . . . . . . Cetus Guard 2 | . . . . . . . . . . . . . 2 . . . . . . . . . . . . . . . . . Packrat 3 | . . . . . . . . . . . . . . . . . . . . . . . . 3 . . . . . . Samaritan 1 | . . . . . . . . . . . . . . . . . . . . 1 . . . . . . . . . . Thug 1 | . . . . . . . . . . . . . . . . . . . 1 . . . . . . . . . . . Butcher 1 | . . . . . . . . . . . . . . . . . . . 1 . . . . . . . . . . . Mutant 1 | . . . . . . . . . . . . . . . . . . . . 1 . . . . . . . . . . Best Kill Streak 5 | 3 3 2 4 2 3 1 . 3 . 3 1 2 3 1 4 . . 5 . . 1 . 2 . . . . 4 3 3 Combat Bots Only 4 | . 3 2 4 2 3 1 . . . 3 . 2 2 . 1 . . 4 . . 1 . 2 . . . . 3 2 3 Max Kills in Single Turn 4 | 1 1 1 3 1 1 1 . 1 . 2 1 1 1 1 4 . . 3 1 1 1 . 1 1 . . . 3 2 1 Gunslinging . | . . . . . . . . . . . . . . . . . . . . . . . . . . . . . . . Exploded 3 | . . . 3 . 1 . . . . 2 . 1 . . 1 . . 2 . . 1 . 1 . . . . 3 2 . Melee . | . . . . . . . . . . . . . . . . . . . . . . . . . . . . . . . Uniques/NPCs Destroyed . | . . . . . . . . . . . . . . . . . . . . . . . . . . . . . . . Combat | -11 -10 -10 -9 -9 -8 -7 -7 -7 -7 -7 -6 -6 -6 -6 -6 -5 -5 -5 -5 -5 -5 -4 -4 -4 -4 -4 -3 -3 -3 -2 -------- Run | Yrd Mat Min Mat Min Mat Fac Was Fac Low Low Fac Ext Cet Arc Hub Fac Was Fac Upp Upp War Pro Fac Upp Upp Zhi Pro Res Tes Res Hostile Shots Fired 1066 | . 64 30 95 7 41 12 . . . 5 69 124 7 . 12 11 . 98 15 . 9 . 23 9 14 . . 36 202 183 Missed 372 | . 18 9 38 1 13 6 . . . . 22 47 4 . 4 5 . 34 3 . 3 . 7 4 8 . . 12 67 67 Hits 694 | . 46 21 57 6 28 6 . . . 5 47 77 3 . 8 6 . 64 12 . 6 . 16 5 6 . . 24 135 116 Melee 4 | . . . . 2 . . . . . . 2 . . . . . . . . . . . . . . . . . . . Projectile 690 | . 46 21 57 4 28 6 . . . 5 45 77 3 . 8 6 . 64 12 . 6 . 16 5 6 . . 24 135 116 AOE 2 | . . . . . . . . . . . 1 . . . . . . . . . 1 . . . . . . . . . Critical Strikes 32 | . . . 3 . 1 . . . . . 3 . . . . . . 5 . . . . . . . . . 1 6 13 Part Disruptions 1 | . . . . . . . . . . . 1 . . . . . . . . . . . . . . . . . . . Damage Taken 12527 | . 507 254 750 84 301 107 . . . 102 779 1121 50 . 167 131 . 1386 285 . 217 . 411 131 118 . . 368 2530 2728 Core 3779 | . 110 25 139 . 84 17 . . . . 100 226 . . 56 20 . 337 92 . 31 . 100 . . . . 91 898 1453 Absorbed by Shields 98 | . . . . . . 16 . . . . . 34 48 . . . . . . . . . . . . . . . . . Redirected to Shielding 162 | . . . . . . . . . . . . . . . . . . . . . . . . . . . . . 162 . Ignored by Resistances 115 | . . . . . . . . . . . . . . . . . . . . . . . . . . . . 55 60 . Regen/Repaired (Parts) 490 | . . . 171 . . . . . . . 29 . . . . 94 14 24 . . 43 . . . . . . 115 . . Core Remaining (%) 67 | 100 . 46 . 65 84 . . . . 97 . . . . 55 . . . . . . 52 . . . . 91 . 16 . Volleys Fired 655 | 12 58 30 80 4 35 22 . 8 2 3 35 16 5 66 22 20 5 30 17 16 13 6 32 11 5 12 3 41 38 8 Largest 2 | 2 2 2 2 2 2 2 . 2 2 1 2 2 1 1 1 1 1 1 1 1 1 1 2 1 1 1 1 1 2 2 Hottest 200 | 60 105 120 130 112 126 126 . 50 50 39 90 117 50 80 90 90 90 98 47 90 90 90 105 47 47 47 47 80 200 66 Shots Fired 920 | 24 115 52 154 8 61 42 . 17 4 3 42 29 5 64 22 20 5 31 17 18 13 6 36 11 6 11 3 41 44 16 Gun 571 | 24 115 37 147 4 58 42 . 16 4 . 14 13 . 57 . . . . . . 1 . 9 1 . . . . 13 16 Cannon 273 | . . . . 4 . . . . . . 28 9 . . 5 20 5 25 17 18 9 6 27 10 6 11 3 39 31 . Launcher 60 | . . . 6 . 3 . . 1 . 3 . 7 5 7 17 . . 6 . . 3 . . . . . . 2 . . Special 16 | . . 15 1 . . . . . . . . . . . . . . . . . . . . . . . . . . . Kinetic 286 | 12 42 25 3 . 1 38 . 16 4 . 14 16 . . . . . . 17 13 . . . 10 6 11 3 39 . 16 Thermal 514 | . 59 27 145 4 57 4 . . . . 28 . . 57 5 20 5 25 . 5 9 6 27 . . . . . 31 . Explosive 16 | . . . 6 . 3 . . 1 . 3 . 3 . . . . . . . . . . . . . . . . . . Electromagnetic 80 | 12 14 . . 4 . . . . . . . 10 5 7 17 . . 6 . . 3 . . . . . . 2 . . Entropic 24 | . . . . . . . . . . . . . . . . . . . . . 1 . 9 1 . . . . 13 . Robot Hit Streak 24 | 5 10 16 24 11 14 18 . 2 2 1 4 6 7 14 3 2 3 9 12 5 3 . 8 8 . 12 . 6 6 6 Robot Miss Streak 6 | 1 3 3 6 . 2 3 . 2 2 2 3 3 . 6 1 2 1 1 2 2 2 . 1 . . 1 . 2 4 4 Penetration Max 1 | . . . . . . . . . . . . . . . . . . . 1 . . . . . . . . . 1 . Secondary Targets 3 | . 1 . 1 . . . . . . . . . . . . . . . . . . . 1 . . . . . . . Max Gunslinging Chain 1 | . 1 . 1 . . . . . . . . . . . . . . . . . . . 1 . . . . . . . Shots Hit Robots 499 | 15 69 38 116 8 37 25 . 10 2 1 8 21 3 56 1 2 4 6 15 9 3 . 12 6 . 9 . 7 7 9 Core Hits 310 | 7 29 15 56 3 19 14 . 5 1 5 1 13 10 43 21 . 1 6 6 5 9 . 9 3 . 5 . 10 8 6 Critical Kills 4 | . . . . . . . . 2 . . . . . . . . . . . . . . . . . . . . . 2 Critical Parts Destroyed 6 | . . . . . . . . 1 . . . 1 . . . . . . . . . . 2 . . . . . 1 1 Critical Strikes 42 | . . 4 16 . 4 . . 3 . . . 2 . . . . . . 5 1 . . 2 . . 1 . . 1 3 Burn 24 | . . 4 16 . 4 . . . . . . . . . . . . . . . . . . . . . . . . . Destroy 6 | . . . . . . . . 1 . . . 2 . . . . . . . . . . . . . . . . . 3 Blast 7 | . . . . . . . . . . . . . . . . . . . 5 1 . . . . . 1 . . . . Smash 2 | . . . . . . . . 2 . . . . . . . . . . . . . . . . . . . . . . Detonate 3 | . . . . . . . . . . . . . . . . . . . . . . . 2 . . . . . 1 . Melee Attacks 25 | . . . . . 2 1 . 21 . . . 1 . . . . . . . . . . . . . . . . . . Impact 24 | . . . . . 2 1 . 21 . . . . . . . . . . . . . . . . . . . . . . Slashing 1 | . . . . . . . . . . . . 1 . . . . . . . . . . . . . . . . . . Piercing . | . . . . . . . . . . . . . . . . . . . . . . . . . . . . . . . Sneak Attacks 4 | . . . . . . . . 3 . . . 1 . . . . . . . . . . . . . . . . . . Combat Hostiles . | . . . . . . . . . . . . . . . . . . . . . . . . . . . . . . . Follow-up Attacks . | . . . . . . . . . . . . . . . . . . . . . . . . . . . . . . . Damage Inflicted 14888 | 170 869 417 2390 150 824 434 . 383 35 228 276 1114 581 1335 1037 63 127 327 632 316 544 . 753 195 . 337 . 386 715 250 Guns 6679 | 170 829 255 1881 71 671 434 . 96 35 . 67 228 . 1184 . . . . . . . . 225 . . . . . 302 231 Cannons 2627 | . . . . 79 . . . . . . 112 186 . . . 63 127 76 632 316 91 . 240 195 . 337 . 173 . . Explosions 4832 | . 40 . 495 . 153 . . . . 228 . 567 581 151 1037 . . 214 . . 453 . 288 . . . . 213 412 . Melee 417 | . . . . . . . . 287 . . . 130 . . . . . . . . . . . . . . . . . . Ramming 157 | . . . . . . . . . . . 97 3 . . . . . 37 . . . . . . . . . . 1 19 Kinetic 3088 | 52 209 136 21 . 21 366 . 96 35 . 67 236 . . . . . . 632 281 . . . 195 . 337 . 173 . 231 Thermal 6687 | . 543 281 1874 71 650 68 . . . . 112 56 256 1184 74 63 127 76 . 35 268 . 521 . . . . 16 412 . Explosive 1168 | . . . 495 . 153 . . . . 228 . 292 . . . . . . . . . . . . . . . . . . Electromagnetic 2844 | 118 117 . . 79 . . . . . . . 397 325 151 963 . . 214 . . 276 . 7 . . . . 197 . . Impact 287 | . . . . . . . . 287 . . . . . . . . . . . . . . . . . . . . . . Slashing 130 | . . . . . . . . . . . . 130 . . . . . . . . . . . . . . . . . . Piercing . | . . . . . . . . . . . . . . . . . . . . . . . . . . . . . . . Entropic 527 | . . . . . . . . . . . . . . . . . . . . . . . 225 . . . . . 302 . Highest Corruption 10 | . . . 4 4 . . 6 6 1 1 10 10 10 10 1 . . 5 7 7 7 1 3 3 3 3 3 . 9 7 Average Corruption 5 | . . . 4 4 . . 6 3 1 1 6 10 10 7 1 . . 1 7 7 6 1 2 3 3 3 3 . 6 3 Corruption Purged 17 | . . . . . . . . 6 . 1 . . . 10 . . . . . . . . . . . . . . . . Corruption Blocked . | . . . . . . . . . . . . . . . . . . . . . . . . . . . . . . . Effects 248 | . . . 48 3 . . 1 4 4 3 1 57 12 14 . . . 5 22 32 1 3 10 8 11 6 1 . 2 . Message Errors 61 | . . . 14 . . . . 1 2 . 1 12 1 6 . . . 1 6 7 1 2 1 2 1 3 . . . . Matter Fused 55 | . . . 9 . . . . . 1 1 . 11 6 2 . . . 1 6 11 . . 5 . . 1 1 . . . Heat Flow Errors 32 | . . . 5 . . . . . . 1 . 8 1 1 . . . 2 4 2 . . 1 2 4 1 . . . . Energy Discharges 29 | . . . 3 1 . . 1 1 . . . 11 1 1 . . . . 3 3 . 1 . 1 2 . . . . . Parts Rejected 1 | . . . . . . . . . . . . 1 . . . . . . . . . . . . . . . . . . Parts Fused 5 | . . . 1 1 . . . . . . . 1 . . . . . . . 1 . . . . . . . . 1 . Data Loss (minor) 26 | . . . 10 1 . . . . . . . 3 . 2 . . . . 2 3 . . 3 . 2 . . . . . Data Loss (major) 11 | . . . 1 . . . . . . 1 . 2 3 . . . . . . 2 . . . 2 . . . . . . Misfires 13 | . . . 3 . . . . 2 . . . 4 . . . . . 1 . 2 . . . . 1 . . . . . Alerts 8 | . . . 1 . . . . . 1 . . 1 . . . . . . 1 1 . . . 1 1 . . . 1 . Misdirections 3 | . . . . . . . . . . . . 3 . . . . . . . . . . . . . . . . . . Weapon Failures 4 | . . . 1 . . . . . . . . . . 2 . . . . . . . . . . . 1 . . . . Overload Shots . | . . . . . . . . . . . . . . . . . . . . . . . . . . . . . . . Overflow Damage 675 | . . . 78 . 2 . . 179 . 22 13 104 . . 28 . . 15 70 . . . 18 60 . 73 . 13 . . Projectiles 235 | . . . . . . . . . . . 13 . . . . . . . 70 . . . 6 60 . 73 . 13 . . Explosions 181 | . . . 78 . 2 . . . . 22 . 24 . . 28 . . 15 . . . . 12 . . . . . . . Melee 259 | . . . . . . . . 179 . . . 80 . . . . . . . . . . . . . . . . . . Knockbacks 9 | . . . . . . . . 2 . . . . . . . . . . 1 . . . . 2 . 1 . 3 . . Impact 2 | . . . . . . . . 2 . . . . . . . . . . . . . . . . . . . . . . Kinetic 7 | . . . . . . . . . . . . . . . . . . . 1 . . . . 2 . 1 . 3 . . Secondary . | . . . . . . . . . . . . . . . . . . . . . . . . . . . . . . . Self-Inflicted Damage 527 | . 12 . 56 . . . . . . 29 47 114 . . 92 . . 64 . . 16 . 88 . . . . . . 9 Shots 13 | . 1 . 1 . . . . . . 1 . 5 . . 1 . . 1 . . 1 . 2 . . . . . . . Rammed 10 | . . . . . . . . . . . 6 . . . . . . 1 . . . . . . . . . . 1 2 Targets Rammed 11 | . . . . . . . . . . . 6 1 . . . . . 1 . . . . . . . . . . 1 2 Kicked 1 | . . . . . . . . . . . . 1 . . . . . . . . . . . . . . . . . . Crushed . | . . . . . . . . . . . . . . . . . . . . . . . . . . . . . . . Highest Temperature 499 | 40 240 136 219 24 236 114 . 18 12 258 312 277 264 402 178 335 288 499 258 228 288 170 192 216 281 172 12 256 463 32 Average Temperature 75 | 20 70 49 56 11 53 26 . 7 9 99 70 95 121 109 43 80 94 121 95 80 61 74 34 98 107 45 4 79 95 18 Received Heat Transfer 2185 | . 249 150 294 24 45 27 . . . . 198 268 . . 12 18 . 162 42 . . . 21 . . . . 21 186 468 Effects 28 | . . . . . . . . . . 1 . 2 . 3 . 3 . 11 . . . . . . . . . 3 5 . Shutdowns 9 | . . . . . . . . . . . . . . 2 . 1 . 4 . . . . . . . . . . 2 . Energy Bleed 7 | . . . . . . . . . . 1 . . . . . 1 . 4 . . . . . . . . . 1 . . Interference 9 | . . . . . . . . . . . . 2 . . . 1 . 2 . . . . . . . . . 2 2 . Matter Decay 1 | . . . . . . . . . . . . . . . . . . 1 . . . . . . . . . . . . Short Circuit 1 | . . . . . . . . . . . . . . . . . . . . . . . . . . . . . 1 . Damage (minor) 1 | . . . . . . . . . . . . . . 1 . . . . . . . . . . . . . . . . Siege Activations . | . . . . . . . . . . . . . . . . . . . . . . . . . . . . . . . Martial Activations . | . . . . . . . . . . . . . . . . . . . . . . . . . . . . . . . Shielding Activations . | . . . . . . . . . . . . . . . . . . . . . . . . . . . . . . . Robots Disrupted 2 | . . . . . . . . . . . . . . . 2 . . . . . . . . . . . . . . . Combat Hostiles 2 | . . . . . . . . . . . . . . . 2 . . . . . . . . . . . . . . . Robots Corrupted 4 | . . . . . . . . 2 . . . . 2 . . . . . . . . . . . . . . . . . Combat Hostiles 2 | . . . . . . . . . . . . . 2 . . . . . . . . . . . . . . . . . Parts Fried 11 | 1 . . . . . . . 2 . . . 2 2 . 1 . . . . . 1 . . . . . . 2 . . Impact Corruptions 7 | . . . . . . . . 7 . . . . . . . . . . . . . . . . . . . . . . Robots Melted 8 | . . 4 4 . . . . . . . . . . . . . . . . . . . . . . . . . . . Combat Hostiles 7 | . . 4 3 . . . . . . . . . . . . . . . . . . . . . . . . . . . Parts Melted 26 | . 1 2 14 . 6 . . . . . . . . 2 1 . . . . . . . . . . . . . . . Heat Transferred 14923 | . 1193 1867 5214 148 1665 148 . . . . 148 50 150 2700 150 100 200 100 . 37 324 . 309 . . . . 50 370 . Parts Sabotaged 3 | . . . . . . . . . . . 3 . . . . . . . . . . . . . . . . . . . Parts Stolen . | . . . . . . . . . . . . . . . . . . . . . . . . . . . . . . . Parts Stripped . | . . . . . . . . . . . . . . . . . . . . . . . . . . . . . . . Power Chain Reactions 15 | . 1 . . . . . . . . . . 1 2 . 2 . . 1 . . 6 . 1 . . . . 1 . . Alert | -11 -10 -10 -9 -9 -8 -7 -7 -7 -7 -7 -6 -6 -6 -6 -6 -5 -5 -5 -5 -5 -5 -4 -4 -4 -4 -4 -3 -3 -3 -2 ------- Run | Yrd Mat Min Mat Min Mat Fac Was Fac Low Low Fac Ext Cet Arc Hub Fac Was Fac Upp Upp War Pro Fac Upp Upp Zhi Pro Res Tes Res Maximum Alert Level 3 | . . . . . . . . . . . . . . . 3 2 1 1 . . . . . . . . . . . . Low Security (%) 93 | 100 100 100 100 100 100 100 100 100 . . 100 100 100 100 37 . 96 87 . . . . 100 . . . . 100 100 100 Level 1 1 | . . . . . . . . . . . . . . . 6 12 3 12 . . . . . . . . . . . . Level 2 4 | . . . . . . . . . . . . . . . 55 87 . . . . . . . . . . . . . . Level 3 . | . . . . . . . . . . . . . . . . . . . . . . . . . . . . . . . Level 4 . | . . . . . . . . . . . . . . . . . . . . . . . . . . . . . . . Level 5 . | . . . . . . . . . . . . . . . . . . . . . . . . . . . . . . . High Security . | . . . . . . . . . . . . . . . . . . . . . . . . . . . . . . . Max Security . | . . . . . . . . . . . . . . . . . . . . . . . . . . . . . . . Peak Influence 928 | 10 72 50 193 104 69 141 47 37 . . 15 183 130 177 928 598 215 247 . . . . 119 . . . . 82 178 107 Initial 454 | . . . . 74 13 7 47 25 . . . . 51 4 2 454 121 102 . . . . . . . . . . 22 59 Average 68 | . 19 8 67 68 17 21 43 8 . . 1 61 64 90 375 479 157 109 . . . . 29 . . . . 4 90 58 Influence Increases 7494 | 20 391 175 913 50 336 338 . 159 5 70 83 721 109 275 1078 439 156 494 20 5 215 . 335 75 60 15 . 243 482 232 Destroy 0b10 Robot/C 2560 | . 220 120 560 40 200 100 . . . 60 . 380 80 80 240 160 . 100 . . . . 40 . . . . 60 60 60 Destroy 0b10 Robot/NC 390 | 20 35 10 50 . 15 30 . 30 5 . 10 20 5 45 55 . . 5 5 5 5 . 10 . . 15 . 5 10 . Destroy Leader 516 | . 56 30 152 10 56 18 . 4 . 10 . 52 . . 68 20 . 10 . . . . 10 . . . . 10 . 10 Allied During Kill 677 | . . . . . . 1 . . . . . 111 8 117 363 77 . . . . . . . . . . . . . . Successful Hack 557 | . 45 . 68 . 22 23 . 58 . . 30 29 . . 22 47 . 74 . . . . 36 . . . . 35 44 24 Disable Machine 495 | . . . 15 . 15 . . 45 . . . 15 . 30 210 15 . 30 . . . . 15 . . . . . 105 . Destroy Structure 919 | . 5 . 53 . 28 1 . 22 . . 13 39 16 3 120 60 156 110 . . . . 104 . . . . 58 128 3 Partial Spotted 180 | . 15 . . . . 60 . . . . 15 . . . . . . 60 . . . . 30 . . . . . . . Lose Combat Pursuer 1200 | . 15 15 15 . . 105 . . . . 15 75 . . . 60 . 105 15 . 210 . 90 75 60 . . 75 135 135 Influence Decreases 7433 | 20 390 176 722 207 352 221 98 196 5 70 83 629 191 276 159 1020 356 578 83 5 105 110 261 149 54 21 . 202 417 277 Entered New Map 1284 | . . 1 . 117 21 11 88 12 . . . . 41 6 7 474 226 45 24 . . 110 . 29 . 6 . . 19 47 Time Decay 4755 | 20 315 165 607 90 311 180 10 184 5 70 62 416 140 270 122 326 110 292 59 5 105 . 231 120 54 15 . 105 236 130 Lost Part 539 | . 30 . 10 . 10 10 . . . . 10 51 10 . 10 10 . 83 . . . . 30 . . . . 15 160 100 Lost Ally 323 | . . 10 10 . 10 20 . . . . 1 162 . . 20 60 20 8 . . . . . . . . . . 2 . Purge Threat 532 | . 45 . 95 . . . . . . . 10 . . . . 150 . 150 . . . . . . . . . 82 . . Squads Dispatched 61 | . 2 . 3 . 1 8 . 5 . . 11 3 . . 1 4 . 6 . . . . 4 . . . . 7 3 3 Investigation 30 | . 1 . 2 . . 2 . 4 . . 6 1 . . 1 3 . 4 . . . . 2 . . . . 3 1 . Extermination 15 | . . . . . . 2 . 1 . . 3 . . . . 1 . 1 . . . . 2 . . . . 2 1 2 Reinforcement 16 | . 1 . 1 . 1 4 . . . . 2 2 . . . . . 1 . . . . . . . . . 2 1 1 Assault . | . . . . . . . . . . . . . . . . . . . . . . . . . . . . . . . Garrison . | . . . . . . . . . . . . . . . . . . . . . . . . . . . . . . . Intercept . | . . . . . . . . . . . . . . . . . . . . . . . . . . . . . . . Searches Triggered . | . . . . . . . . . . . . . . . . . . . . . . . . . . . . . . . Construction Impeded . | . . . . . . . . . . . . . . . . . . . . . . . . . . . . . . . Haulers Reinforced . | . . . . . . . . . . . . . . . . . . . . . . . . . . . . . . . Active Scanning Responses . | . . . . . . . . . . . . . . . . . . . . . . . . . . . . . . . Cargo Convoy Interrupts 3 | . . . . . . 1 . . . . 1 . . . . . . 1 . . . . . . . . . . . . Stealth | -11 -10 -10 -9 -9 -8 -7 -7 -7 -7 -7 -6 -6 -6 -6 -6 -5 -5 -5 -5 -5 -5 -4 -4 -4 -4 -4 -3 -3 -3 -2 --------- Run | Yrd Mat Min Mat Min Mat Fac Was Fac Low Low Fac Ext Cet Arc Hub Fac Was Fac Upp Upp War Pro Fac Upp Upp Zhi Pro Res Tes Res Distress Signals 19 | . . . 3 . . . . . . . . 2 1 . 2 2 . 2 . . 2 . 1 . . . . . 4 . Communications Jammed . | . . . . . . . . . . . . . . . . . . . . . . . . . . . . . . . Distress Signals . | . . . . . . . . . . . . . . . . . . . . . . . . . . . . . . . Times Spotted 464 | . 24 7 41 2 16 16 3 6 . 3 27 27 5 50 12 18 5 36 2 . 80 . 13 4 4 . . 13 23 27 Peak Tracking Total 22 | . 3 2 7 2 3 5 3 2 . 3 22 3 5 2 5 10 2 19 1 . 13 . 4 4 2 . . 7 9 14 Tactical Retreats 43 | . 1 1 1 . . 2 . . . . 1 3 . . . 2 . 2 1 . 6 . 4 3 2 . . 4 4 6 Traps | -11 -10 -10 -9 -9 -8 -7 -7 -7 -7 -7 -6 -6 -6 -6 -6 -5 -5 -5 -5 -5 -5 -4 -4 -4 -4 -4 -3 -3 -3 -2 ------- Run | Yrd Mat Min Mat Min Mat Fac Was Fac Low Low Fac Ext Cet Arc Hub Fac Was Fac Upp Upp War Pro Fac Upp Upp Zhi Pro Res Tes Res Traps Triggered 20 | . 1 . 2 . . 2 . . . . 1 2 . . 3 2 . 3 . . 1 . 1 . . . . 1 1 . Indirectly 3 | . . . . . . . . . . . . . . . 2 . . 1 . . . . . . . . . . . . Trap Hack Attempts . | . . . . . . . . . . . . . . . . . . . . . . . . . . . . . . . Triggered . | . . . . . . . . . . . . . . . . . . . . . . . . . . . . . . . Disarmed . | . . . . . . . . . . . . . . . . . . . . . . . . . . . . . . . Reprogrammed . | . . . . . . . . . . . . . . . . . . . . . . . . . . . . . . . Reused . | . . . . . . . . . . . . . . . . . . . . . . . . . . . . . . . Traps Extracted . | . . . . . . . . . . . . . . . . . . . . . . . . . . . . . . . Installed . | . . . . . . . . . . . . . . . . . . . . . . . . . . . . . . . Triggered . | . . . . . . . . . . . . . . . . . . . . . . . . . . . . . . . Machines | -11 -10 -10 -9 -9 -8 -7 -7 -7 -7 -7 -6 -6 -6 -6 -6 -5 -5 -5 -5 -5 -5 -4 -4 -4 -4 -4 -3 -3 -3 -2 ---------- Run | Yrd Mat Min Mat Min Mat Fac Was Fac Low Low Fac Ext Cet Arc Hub Fac Was Fac Upp Upp War Pro Fac Upp Upp Zhi Pro Res Tes Res Machines Disabled 36 | . . . 2 . 1 . . 3 . . . 1 . 2 14 1 . 2 . . 1 . 1 . . 1 . . 7 . Max in Single Turn 12 | . . . 1 . 1 . . 1 . . . 1 . 1 12 . . 1 . . 1 . 1 . . 1 . . 1 . Garrison Access 10 | . . . . . . . . 2 . . 1 . . . . 2 . 1 . . . . 1 . . . . 2 1 . Network Hub 1 | . . . . . . . . . . . . . . . 1 . . . . . . . . . . . . . . . Machines Repaired . | . . . . . . . . . . . . . . . . . . . . . . . . . . . . . . . Machines Dismantled . | . . . . . . . . . . . . . . . . . . . . . . . . . . . . . . . Machines Sabotaged . | . . . . . . . . . . . . . . . . . . . . . . . . . . . . . . . Overloaded Fab Kills . | . . . . . . . . . . . . . . . . . . . . . . . . . . . . . . . Hacking | -11 -10 -10 -9 -9 -8 -7 -7 -7 -7 -7 -6 -6 -6 -6 -6 -5 -5 -5 -5 -5 -5 -4 -4 -4 -4 -4 -3 -3 -3 -2 --------- Run | Yrd Mat Min Mat Min Mat Fac Was Fac Low Low Fac Ext Cet Arc Hub Fac Was Fac Upp Upp War Pro Fac Upp Upp Zhi Pro Res Tes Res Machines Accessed 168 | . 9 . 16 . 5 12 . 16 . 2 16 13 . . 4 13 . 12 . . 6 . 13 . 1 5 . 15 7 3 Terminals 97 | . 7 . 11 . 4 7 . 8 . . 10 12 . . 4 7 . 5 . . . . 9 . . . . 8 4 1 Fabricators 19 | . . . . . . 3 . 4 . . 3 . . . . 1 . 4 . . . . 1 . . . . 2 1 . Repair Stations 9 | . . . 2 . . . . 1 . . 1 . . . . 2 . 2 . . . . . . . . . 1 . . Recycling Units 12 | . 2 . 2 . . 1 . 1 . . 1 1 . . . . . . . . . . 2 . . . . 1 . 1 Scanalyzers 6 | . . . 1 . 1 1 . . . . . . . . . 1 . . . . . . . . . . . 1 1 . Garrison Access 11 | . . . . . . . . 2 . . 1 . . . . 2 . 1 . . . . 1 . . . . 2 1 1 Total Hacks 484 | . 30 . 61 . 12 26 . 42 . 2 48 21 . . 7 43 . 49 . . 15 . 39 . 1 18 . 42 19 9 Successful 292 | . 15 . 34 . 8 11 . 23 . 2 34 11 . . 2 28 . 28 . . 15 . 23 . 1 18 . 25 12 2 Failed 189 | . 15 . 26 . 4 15 . 19 . . 13 10 . . 5 15 . 21 . . . . 15 . . . . 17 7 7 Catastrophic 38 | . 2 . 1 . 1 2 . 4 . . 4 4 . . 1 3 . 2 . . . . 4 . . . . 6 1 3 Database Lockouts 3 | . . . 1 . . . . . . . 1 . . . . . . . . . . . 1 . . . . . . . Manual 210 | . 17 . 24 . 9 13 . 20 . . 18 11 1 . 3 19 . 18 . . . . 28 . . . . 21 8 . Terminals 270 | . 25 . 37 . 10 16 . 23 . . 28 20 . . 7 24 . 17 . . . . 28 . . . . 22 9 4 Fabricators 86 | . . . . . . 8 . 14 . . 15 . . . . 4 . 19 . . . . 7 . . . . 13 6 . Repair Stations 37 | . . . 14 . . . . 2 . . 2 . . . . 9 . 8 . . . . . . . . . 2 . . Recycling Units 24 | . 5 . 6 . . 1 . 1 . . 2 1 . . . . . . . . . . 3 . . . . 2 . 3 Scanalyzers 14 | . . . 4 . 2 1 . . . . . . . . . 4 . . . . . . . . . . . 1 2 . Garrison Access 17 | . . . . . . . . 2 . . 1 . . . . 2 . 5 . . . . 1 . . . . 2 2 2 Terminal Hacks 121 | . 9 . 14 . 3 2 . 4 . 2 12 6 . . 1 9 . 7 . . 15 . 8 . 1 18 . 5 4 1 Record 20 | . . . . . . . . . . 1 . . . . . . . . . . 13 . . . . 6 . . . . Part Schematic 16 | . 2 . . . . . . 1 . . 2 . . . . 1 . 2 . . . . 1 . . 4 . 1 2 . Robot Analysis 5 | . . . 1 . . . . . . . . . . . . . . . . . . . . . . 4 . . . . Prototype ID Bank 8 | . . . 2 . . . . 1 . . . . . . . . . 1 . . . . . . . 4 . . . . Open Door 9 | . . . . . . . . . . 1 1 4 . . . . . . . . 2 . . . 1 . . . . . Level Access Points 1 | . . . . . 1 . . . . . . . . . . . . . . . . . . . . . . . . . Branch Access Points 6 | . . . 1 . . . . 1 . . . . . . . 1 . 1 . . . . 1 . . . . 1 . . Terminal Index 11 | . 2 . 1 . 1 1 . 1 . . 1 . . . . 1 . 1 . . . . 1 . . . . . 1 . Garrison Index 1 | . . . . . . . . . . . 1 . . . . . . . . . . . . . . . . . . . Alert Level 2 | . . . 1 . . . . . . . . . . . . . . . . . . . 1 . . . . . . . Unreport Threat 8 | . 1 . 2 . . . . . . . 1 . . . . 1 . 1 . . . . . . . . . 2 . . Locate Traps 9 | . 2 . 2 . 1 . . . . . . 1 . . . 2 . . . . . . 1 . . . . . . . Recall Extermination 4 | . . . . . . 1 . . . . 2 . . . . . . . . . . . . . . . . 1 . . Registered Components 1 | . . . . . . . . . . . . . . . . . . . . . . . 1 . . . . . . . Zone Layout 20 | . 2 . 4 . . . . . . . 4 1 . . 1 3 . 1 . . . . 2 . . . . . 1 1 Fabricator Hacks 50 | . . . . . . 2 . 7 . . 11 . . . . 3 . 9 . . . . 6 . . . . 10 2 . Network Status 8 | . . . . . . 1 . 1 . . 1 . . . . 2 . 2 . . . . 1 . . . . . . . Load Schematic 27 | . . . . . . 1 . 4 . . 6 . . . . 1 . 5 . . . . 3 . . . . 6 1 . Build 15 | . . . . . . . . 2 . . 4 . . . . . . 2 . . . . 2 . . . . 4 1 . Repair Station Hacks 24 | . . . 11 . . . . . . . 2 . . . . 5 . 4 . . . . . . . . . 2 . . Scan Component 14 | . . . 6 . . . . . . . 1 . . . . 3 . 3 . . . . . . . . . 1 . . Repair 10 | . . . 5 . . . . . . . 1 . . . . 2 . 1 . . . . . . . . . 1 . . Recycling Unit Hacks 11 | . 2 . . . . 1 . 1 . . 1 1 . . . . . . . . . . 3 . . . . 1 . 1 Retrieve Components 11 | . 2 . . . . 1 . 1 . . 1 1 . . . . . . . . . . 3 . . . . 1 . 1 Scanalyzer 12 | . . . 2 . 2 1 . . . . . . . . . 4 . . . . . . . . . . . 1 2 . Insert Component 8 | . . . 1 . 1 1 . . . . . . . . . 2 . . . . . . . . . . . 1 2 . Analyze 4 | . . . 1 . 1 . . . . . . . . . . 2 . . . . . . . . . . . . . . Garrison Access Hacks 10 | . . . . . . . . 2 . . 1 . . . . 2 . 1 . . . . 1 . . . . 2 1 . Seal Access 10 | . . . . . . . . 2 . . 1 . . . . 2 . 1 . . . . 1 . . . . 2 1 . Unauthorized Hacks 64 | . 4 . 7 . 3 5 . 9 . . 7 4 . . 1 5 . 7 . . . . 5 . . . . 4 3 . Terminals 43 | . 4 . 7 . 3 3 . 5 . . 3 4 . . 1 4 . 2 . . . . 4 . . . . 1 2 . Track 5 | . . . . . . 1 . . . . . . . . 1 1 . . . . . . 1 . . . . . 1 . Assimilate 12 | . 1 . 3 . 1 . . 2 . . 2 . . . . . . 1 . . . . 1 . . . . 1 . . Botnet 17 | . 2 . 1 . 1 2 . 3 . . 1 1 . . . 2 . 1 . . . . 2 . . . . . 1 . Disrupt 5 | . . . 2 . . . . . . . . 3 . . . . . . . . . . . . . . . . . . Operators 4 | . 1 . 1 . 1 . . . . . . . . . . 1 . . . . . . . . . . . . . . Fabricators 21 | . . . . . . 2 . 4 . . 4 . . . . 1 . 5 . . . . 1 . . . . 3 1 . Prioritize 4 | . . . . . . . . 1 . . 1 . . . . . . 1 . . . . . . . . . 1 . . Recompile 17 | . . . . . . 2 . 3 . . 3 . . . . 1 . 4 . . . . 1 . . . . 2 1 . Repair Stations . | . . . . . . . . . . . . . . . . . . . . . . . . . . . . . . . Recycling Units . | . . . . . . . . . . . . . . . . . . . . . . . . . . . . . . . Scanalyzers . | . . . . . . . . . . . . . . . . . . . . . . . . . . . . . . . Garrison Access . | . . . . . . . . . . . . . . . . . . . . . . . . . . . . . . . Data Cores Recovered 2 | . . . . . . 2 . . . . . . . . . . . . . . . . . . . . . . . . Used . | . . . . . . . . . . . . . . . . . . . . . . . . . . . . . . . Hacking Detections 125 | . 8 . 15 . 5 11 . 12 . . 13 9 . . 3 10 . 9 . . . . 11 . . . . 10 6 3 Full Trace Events 11 | . . . 1 . 1 . . 1 . . 3 1 . . . 2 . . . . . . 1 . . . . 1 . . Feedback Events 2 | . . . . . . . . 1 . . . . . . . . . . . . . . . . . . . 1 . . Corruption 1 | . . . . . . . . 1 . . . . . . . . . . . . . . . . . . . . . . Hackware Fried 1 | . . . . . . . . . . . . . . . . . . . . . . . . . . . . 1 . . Feedback Blocked . | . . . . . . . . . . . . . . . . . . . . . . . . . . . . . . . Robot Schematics Acquired . | . . . . . . . . . . . . . . . . . . . . . . . . . . . . . . . Robots Built . | . . . . . . . . . . . . . . . . . . . . . . . . . . . . . . . Authchips . | . . . . . . . . . . . . . . . . . . . . . . . . . . . . . . . Time . | . . . . . . . . . . . . . . . . . . . . . . . . . . . . . . . Total Robot Build Rating . | . . . . . . . . . . . . . . . . . . . . . . . . . . . . . . . Part Schematics Acquired 19 | . 2 . 1 . 1 . . 1 . . 2 . . . . 2 . 2 . . . . 1 . . 4 . 1 2 . Parts Built 18 | . . . . . . . . 3 . . 5 . . . . . . 3 . . . . 2 . . . . 4 1 . Authchips 12 | . . . . . . . . 1 . . 3 . . . . . . 2 . . . . 2 . . . . 4 . . Time 901 | . . . . . . . . 222 . . 216 . . . . . . 111 . . . . 70 . . . . 171 111 . Total Part Build Rating 109 | . . . . . . . . 18 . . 28 . . . . . . 20 . . . . 12 . . . . 22 9 . Parts Repaired 10 | . . . 5 . . . . . . . 1 . . . . 2 . 1 . . . . . . . . . 1 . . Time 378 | . . . 204 . . . . . . . 30 . . . . 46 . 44 . . . . . . . . . 54 . . Parts Recycled . | . . . . . . . . . . . . . . . . . . . . . . . . . . . . . . . Recycled Matter . | . . . . . . . . . . . . . . . . . . . . . . . . . . . . . . . Retrieved Matter . | . . . . . . . . . . . . . . . . . . . . . . . . . . . . . . . Retrieved Components 27 | . 12 . . . . 1 . 1 . . 1 9 . . . . . . . . . . . . . . . 3 . . Parts Scanalyzed 4 | . . . 1 . 1 . . . . . . . . . . 2 . . . . . . . . . . . . . . Part Schematics Acquired 3 | . . . 1 . 1 . . . . . . . . . . 1 . . . . . . . . . . . . . . Parts Damaged . | . . . . . . . . . . . . . . . . . . . . . . . . . . . . . . . Bothacking | -11 -10 -10 -9 -9 -8 -7 -7 -7 -7 -7 -6 -6 -6 -6 -6 -5 -5 -5 -5 -5 -5 -4 -4 -4 -4 -4 -3 -3 -3 -2 ------------ Run | Yrd Mat Min Mat Min Mat Fac Was Fac Low Low Fac Ext Cet Arc Hub Fac Was Fac Upp Upp War Pro Fac Upp Upp Zhi Pro Res Tes Res Used RIF Installer . | . . . . . . . . . . . . . . . . . . . . . . . . . . . . . . . Robots Hacked . | . . . . . . . . . . . . . . . . . . . . . . . . . . . . . . . Non-combat . | . . . . . . . . . . . . . . . . . . . . . . . . . . . . . . . Combat . | . . . . . . . . . . . . . . . . . . . . . . . . . . . . . . . Robot Hacks Applied . | . . . . . . . . . . . . . . . . . . . . . . . . . . . . . . . Relay Couplers Released . | . . . . . . . . . . . . . . . . . . . . . . . . . . . . . . . Fabnet Peak Effective % . | . . . . . . . . . . . . . . . . . . . . . . . . . . . . . . . Robots Rewired 15 | . . . . . . 1 . . . . . 14 . . . . . . . . . . . . . . . . . . Allies Hacked . | . . . . . . . . . . . . . . . . . . . . . . . . . . . . . . . Hacks Repelled . | . . . . . . . . . . . . . . . . . . . . . . . . . . . . . . . Allies | -11 -10 -10 -9 -9 -8 -7 -7 -7 -7 -7 -6 -6 -6 -6 -6 -5 -5 -5 -5 -5 -5 -4 -4 -4 -4 -4 -3 -3 -3 -2 -------- Run | Yrd Mat Min Mat Min Mat Fac Was Fac Low Low Fac Ext Cet Arc Hub Fac Was Fac Upp Upp War Pro Fac Upp Upp Zhi Pro Res Tes Res Total Allies 52 | . 1 . 1 . 1 1 . 1 . . 2 19 5 . . . 18 1 . . . . 1 . . . . 1 . . Largest Group 18 | . 1 1 1 . 1 1 . 1 1 1 3 6 6 5 5 4 18 1 . . . . 1 . . . . 1 1 . Highest-Rated Group 639 | . 10 10 10 . 10 32 . 26 24 24 60 183 639 480 480 370 638 26 . . . . 26 . . . . 45 45 . Highest-Rated Ally 159 | . 10 10 10 . 10 32 . 26 24 24 26 159 159 96 96 96 50 26 . . . . 26 . . . . 45 45 . Total Orders 19 | . . 6 . . 9 . . . . 2 . . . 2 . . . . . . . . . . . . . . . . STAY 10 | . . 3 . . 5 . . . . 1 . . . 1 . . . . . . . . . . . . . . . . FOLLOW 9 | . . 3 . . 4 . . . . 1 . . . 1 . . . . . . . . . . . . . . . . Ally Attacks 465 | . . . . . . 12 . . . . . 132 4 31 66 30 190 . . . . . . . . . . . . . Total Damage 16026 | . . . . . . 484 . . . . . 2417 121 1157 2508 1324 8015 . . . . . . . . . . . . . Kills 67 | . . . . . . 5 . . . . . 17 2 4 14 9 16 . . . . . . . . . . . . . Allies Corrupted 2 | . . . . . . . . . . . . 1 . . . 1 . . . . . . . . . . . . . . Allies Melted . | . . . . . . . . . . . . . . . . . . . . . . . . . . . . . . . Intel | -11 -10 -10 -9 -9 -8 -7 -7 -7 -7 -7 -6 -6 -6 -6 -6 -5 -5 -5 -5 -5 -5 -4 -4 -4 -4 -4 -3 -3 -3 -2 ------- Run | Yrd Mat Min Mat Min Mat Fac Was Fac Low Low Fac Ext Cet Arc Hub Fac Was Fac Upp Upp War Pro Fac Upp Upp Zhi Pro Res Tes Res Active Infowar (turns) 18439 | 178 503 540 2139 40 1152 869 30 707 486 514 725 824 288 314 296 727 234 668 731 968 1333 199 974 845 521 169 134 847 484 . Optics 3238 | . . . . . . 862 30 377 . . . 773 288 260 . . . . . . 542 106 . . . . . . . . Sensors 12195 | . . . . . 1080 789 30 704 483 512 725 51 . . . 665 234 512 731 968 733 93 953 845 521 168 130 824 444 . Terrain 9401 | . . . . . . . . 241 483 159 . . . 54 296 727 234 623 347 968 1331 199 745 844 521 166 132 847 484 . Seismic 3472 | 178 503 540 2139 40 72 . . . . . . . . . . . . . . . . . . . . . . . . . Robot Analysis Total 5 | . . . 1 . . . . . . . . . . . . . . . . . . . . . . 4 . . . . Derelict Logs Recovered 10 | . . 1 . 1 . . . . 1 2 . . . . . . . . 1 . . 1 . 1 2 . . . . . Drone Launches . | . . . . . . . . . . . . . . . . . . . . . . . . . . . . . . . Drone Recoveries . | . . . . . . . . . . . . . . . . . . . . . . . . . . . . . . . Exploration | -11 -10 -10 -9 -9 -8 -7 -7 -7 -7 -7 -6 -6 -6 -6 -6 -5 -5 -5 -5 -5 -5 -4 -4 -4 -4 -4 -3 -3 -3 -2 ------------- Run | Yrd Mat Min Mat Min Mat Fac Was Fac Low Low Fac Ext Cet Arc Hub Fac Was Fac Upp Upp War Pro Fac Upp Upp Zhi Pro Res Tes Res Turns Passed 22453 | 267 1236 984 2831 188 1552 869 30 707 486 540 828 1453 288 598 296 727 234 718 732 968 1333 199 974 845 521 212 134 847 578 278 Spaces Moved 21895 | 81 869 709 1574 125 994 1167 68 1085 876 1177 1505 914 89 298 240 942 309 903 559 830 1198 232 1157 734 530 276 266 1142 700 346 Core 339 | 9 . . . . . . . . . . . . . . . . . . . . . . . . . . . . 90 240 Treads . | . . . . . . . . . . . . . . . . . . . . . . . . . . . . . . . Legs 967 | . . . . . . . . . . . . 815 89 63 . . . . . . . . . . . . . . . . Wheels 4451 | 72 869 709 1574 125 994 . . . . . . . . . . . . . . . . . . . . . . . 2 106 Hover 16138 | . . . . . . 1167 68 1085 876 1177 1505 99 . 235 240 942 309 903 559 830 1198 232 1157 734 530 276 266 1142 608 . Flight . | . . . . . . . . . . . . . . . . . . . . . . . . . . . . . . . Fastest Speed 31 | 50 80 110 110 135 105 42 42 34 34 34 31 105 120 96 96 35 36 36 61 110 38 38 38 36 36 36 42 38 40 50 Average Speed 71 | 82 102 110 129 137 114 48 42 40 34 34 32 125 120 103 96 51 38 42 119 110 78 38 39 95 93 61 44 43 50 64 Slowest Speed 290 | 200 140 110 150 150 120 162 42 102 94 94 105 290 120 190 100 100 40 106 160 110 160 38 100 108 108 100 100 100 250 110 Overloaded Moves 133 | . . . . . . . . . . . . . . . . . . . . . . . . 53 71 9 . . . . Propulsion Burnouts . | . . . . . . . . . . . . . . . . . . . . . . . . . . . . . . . Robots Hopped . | . . . . . . . . . . . . . . . . . . . . . . . . . . . . . . . Potential Cave-ins 3 | . . . . . . . . . . . . . . . . . . . . . . 2 . . . . . . 1 . Cave-ins Triggered . | . . . . . . . . . . . . . . . . . . . . . . . . . . . . . . . Teleports 1 | . . . . . . . . . . . . . . . . . . . . . . . . . . . . . 1 . Exploration Rate (%) 60 | 5 99 98 91 48 59 36 88 29 84 99 34 87 52 98 33 28 96 30 59 82 94 43 28 83 64 60 43 30 77 15 Regions Visited 30 Branch Regions 17 Pre-discovered Areas 3 | . . . . . . . . . . . . . . . . . . . . . . . . . . 3 . . . . Known Exits Taken 22 | . . . 1 . 1 . . 1 1 1 1 1 1 1 1 . . 1 1 1 1 1 1 1 1 1 1 1 1 . Unknown Exits Taken 4 | 1 1 1 . 1 . . . . . . . . . . . . . . . . . . . . . . . . . . Scrap Searched 28 | . . 1 . 2 . . . . 4 9 . . . . . . . . 2 3 . 1 . 2 2 . 2 . . . Spaces Dug 145 | . . . . . 3 1 . 26 . . 12 . . . 1 14 . 19 . 1 4 4 16 3 2 . 2 21 16 . Terrain Destroyed 678 | . 3 . 47 . 29 1 . 26 . 37 15 45 22 . 162 18 . 58 6 12 24 6 51 5 7 . 3 29 69 3 Melee 17 | . . . . . 2 1 . 14 . . . . . . . . . . . . . . . . . . . . . . Projectile 220 | . . . . . 1 . . . . . 15 3 . . 3 18 . 23 6 12 6 6 36 5 7 . 3 23 50 3 AOE 441 | . 3 . 47 . 26 . . 12 . 37 . 42 22 . 159 . . 35 . . 18 . 15 . . . . 6 19 . Terrain Rammed . | . . . . . . . . . . . . . . . . . . . . . . . . . . . . . . . Walls Destroyed . | . . . . . . . . . . . . . . . . . . . . . . . . . . . . . . . Machines Disabled . | . . . . . . . . . . . . . . . . . . . . . . . . . . . . . . . Actions | -11 -10 -10 -9 -9 -8 -7 -7 -7 -7 -7 -6 -6 -6 -6 -6 -5 -5 -5 -5 -5 -5 -4 -4 -4 -4 -4 -3 -3 -3 -2 --------- Run | Yrd Mat Min Mat Min Mat Fac Was Fac Low Low Fac Ext Cet Arc Hub Fac Was Fac Upp Upp War Pro Fac Upp Upp Zhi Pro Res Tes Res Total 27703 | 255 1106 855 2216 133 1353 1446 68 1305 1058 1303 1805 1184 266 508 283 1168 417 1212 606 869 1576 335 1645 864 551 305 277 1458 887 389 Wait 4221 | 150 140 93 469 . 246 187 . 152 170 116 228 151 167 114 17 176 101 237 25 21 332 97 401 113 9 2 . 221 82 4 Move 21868 | 80 868 708 1573 124 993 1167 67 1084 875 1176 1504 913 88 297 239 942 308 903 558 829 1197 231 1156 733 529 275 265 1141 699 346 Hop . | . . . . . . . . . . . . . . . . . . . . . . . . . . . . . . . Pick Up 176 | 6 15 7 23 1 17 10 . 9 1 . 9 7 . 5 2 4 1 10 1 1 7 . 10 1 1 2 . 14 6 6 Fast Attach 108 | 7 1 . 4 . 6 1 . 2 2 1 7 15 2 2 1 5 1 5 3 1 10 . 8 . 3 2 . 6 5 8 Attach 98 | . 2 . 4 1 3 7 . 2 . . 5 6 . 6 1 2 . 5 2 . 4 . 7 4 . 4 2 8 15 8 Detach 58 | . . . . 1 1 . . 3 1 . 2 3 2 3 . 2 . 2 . . 3 . 8 2 2 1 4 4 11 3 Swap 199 | . 11 14 36 2 26 7 1 14 5 7 5 8 . 8 . 6 . 9 . . 5 1 11 . . 5 3 8 7 . Drop 186 | . 11 3 27 . 24 16 . 10 2 . 4 5 2 7 1 11 1 11 . 1 5 . 12 . 2 2 . 15 10 4 Fire 655 | 12 58 30 80 4 35 22 . 8 2 3 35 16 5 66 22 20 5 30 17 16 13 6 32 11 5 12 3 41 38 8 Melee 25 | . . . . . 2 1 . 21 . . . 1 . . . . . . . . . . . . . . . . . . Ram 9 | . . . . . . . . . . . 6 . . . . . . . . . . . . . . . . . 1 2 Kick 1 | . . . . . . . . . . . . 1 . . . . . . . . . . . . . . . . . . Crush . | . . . . . . . . . . . . . . . . . . . . . . . . . . . . . . . Escape Stasis 25 | . . . . . . 11 . . . . . 1 . . . . . . . . . . . . . . . . 13 . Rewire 74 | . . . . . . 17 . . . . . 57 . . . . . . . . . . . . . . . . . . Trap . | . . . . . . . . . . . . . . . . . . . . . . . . . . . . . . . Miscellaneous . | . . . . . . . . . . . . . . . . . . . . . . . . . . . . . . . Route ------- -11/Scrapyard -10/Materials (discovered 5 exits: *Mat x3 / [*Min] / [*Sub]) -10/Mines (discovered 3 exits: *Mat x2 / [*Exi]) -9/Materials (discovered 5 exits: *Mat x3 / *Min x2) -9/Mines -8/Materials (discovered 3 exits: *Fac x3) -7/Factory (discovered 2 exits: *Fac / *Sto) -7/Waste -7/Factory (discovered 5 exits: *Fac / *Sto x2 / *Low x2) -7/Lower Caves -7/Lower Caves (discovered 2 exits: *Fac / *Dat) -6/Factory (discovered 4 exits: *Fac / Low / *Ext x2) -6/Extension (discovered 2 exits: *Fac / *Cet) -6/Cetus -6/Archives (discovered 3 exits: *Fac / *Hub x2) -6/Hub_04(d) (discovered 2 exits: *Fac x2) -5/Factory (discovered 4 exits: *Fac x2 / Upp x2) -5/Waste -5/Factory (discovered 4 exits: *Fac x2 / *Upp x2) -5/Upper Caves -5/Upper Caves (discovered 2 exits: *Fac / *War) -5/Warlord -4/Proximity Caves -4/Factory (discovered 4 exits: *Res / *Upp x2 / Arm) -4/Upper Caves -4/Upper Caves -4/Zhirov -3/Proximity Caves -3/Research (discovered 3 exits: Res / *Tes x2) -3/Testing -2/Research History --------- Turn | Location | Event 2 | -11/Scrapyard | Met Revision 17 17 | -11/Scrapyard | Discovered new exit (range 15) 268 | -11/Scrapyard | Entered Materials 269 | -10/Materials | Met a group of wandering Federalists 307 | -10/Materials | Discovered new exit (range 12) 310 | -10/Materials | Build established: Mutant 655 | -10/Materials | Discovered new exit (range 15) 754 | -10/Materials | Discovered new exit (range 11) 1153 | -10/Materials | Discovered new exit (range 16) 1434 | -10/Materials | Build established: Scavenger-Mutant 1438 | -10/Materials | Discovered new exit (range 16) 1504 | -10/Materials | Entered Mines 1504 | -10/Mines | Accompanied by 1 ally 1509 | -10/Mines | Core integrity fell below 50% 1648 | -10/Mines | A weapon hastily lodged in a ceiling crevice suddenly fell to the ground 1837 | -10/Mines | Assembled infested the area 2042 | -10/Mines | Discovered new exit (range 16) 2396 | -10/Mines | Discovered new exit (range 6) 2413 | -10/Mines | Deemed a non-threat by the Exiles lab entrance 2414 | -10/Mines | Discovered new exit (range 5) 2488 | -10/Mines | Entered Materials 2488 | -9/Materials | Evolved 2 slots: Utility x2 2778 | -9/Materials | Discovered new exit (range 16) 3288 | -9/Materials | Build established: Mutant 3338 | -9/Materials | Repaired Imp. Heat Sink 3507 | -9/Materials | Discovered new exit (range 15) 3609 | -9/Materials | Identified exit to Mines 3924 | -9/Materials | Repaired Imp. Medium Laser 3977 | -9/Materials | Repaired Imp. Medium Laser 4010 | -9/Materials | Repaired Arm. Wheel 4043 | -9/Materials | Repaired Imp. Ion Engine 4869 | -9/Materials | Discovered new exit (range 16) 5215 | -9/Materials | Central database locked down 5250 | -9/Materials | Discovered new exit (range 16) 5319 | -9/Materials | Entered Mines 5392 | -9/Mines | Learned Materials terminal intel 5414 | -9/Mines | Found a damaged Exp. Sensor Array with a note attached 5418 | -9/Mines | Found Prototype Device 5497 | -9/Mines | Discovered new exit (range 7) 5507 | -9/Mines | Entered Materials 5507 | -8/Materials | Evolved 2 slots: Propulsion x2 5508 | -8/Materials | Loaded intel: 9 terminal locations 5599 | -8/Materials | Identified Exp. Sensor Array 6611 | -8/Materials | Identified exit to Factory 7059 | -8/Materials | Entered Factory 7059 | -7/Factory | Evolved 2 slots: Propulsion x1, Utility x1 7060 | -7/Factory | Identified exit to Storage 7464 | -7/Factory | Build established: Scout 7499 | -7/Factory | Discovered new exit (range 19) 7685 | -7/Factory | Cargo convoy interrupted 7928 | -7/Factory | Sucked down chute 7928 | -7/Factory | Entered Waste 7932 | -7/Waste | Spotted C-40 Crusher 7933 | -7/Waste | Spotted C-40 Crusher 7939 | -7/Waste | Spotted C-40 Crusher 7941 | -7/Waste | Spotted C-40 Crusher 7943 | -7/Waste | EMP discharged 7943 | -7/Waste | Spotted C-40 Crusher 7951 | -7/Waste | Spotted C-40 Crusher 7952 | -7/Waste | Discovered new exit (range 14) 7958 | -7/Waste | Identified exit to Factory 7958 | -7/Waste | Entered Factory 8054 | -7/Factory | Fabricated Adv. System Restoration Module (x2) 8183 | -7/Factory | Discovered new exit (range 6) 8185 | -7/Factory | Identified exit to Factory 8254 | -7/Factory | Identified exit to Lower Caves 8592 | -7/Factory | Fabricated Prc. Energy Filter (x1) 8665 | -7/Factory | Entered Lower Caves 8665 | -7/Lower Caves | Accompanied by 1 ally 9006 | -7/Lower Caves | Encountered a Warlord checkpoint 9101 | -7/Lower Caves | Identified exit to Lower Caves 9151 | -7/Lower Caves | Entered another Lower Caves area 9151 | -7/Lower Caves | Accompanied by 1 ally 9349 | -7/Lower Caves | Encountered a Warlord checkpoint 9355 | -7/Lower Caves | Discovered exit to Factory (range 13) 9357 | -7/Lower Caves | Learned location of 1 exit from Factory 9398 | -7/Lower Caves | Entered a destroyed Warlord outpost 9539 | -7/Lower Caves | Discovered new exit (range 12) 9542 | -7/Lower Caves | Identified exit to Data Miner 9603 | -7/Lower Caves | Build established: Mutant 9691 | -7/Lower Caves | Entered Factory 9691 | -6/Factory | Accompanied by 1 ally 9691 | -6/Factory | Evolved 2 slots: Power x1, Propulsion x1 9692 | -6/Factory | Identified exit to Extension 9693 | -6/Factory | Identified exit to Lower Caves 9761 | -6/Factory | Repaired Aerolev Unit 9865 | -6/Factory | Fabricated Adv. Terrain Scanner (x2) 10009 | -6/Factory | Discovered exit to Extension (range 6) 10060 | -6/Factory | Discovered new exit (range 14) 10063 | -6/Factory | Build established: Hacker-Sprinter 10215 | -6/Factory | Central database locked down 10245 | -6/Factory | Fabricated Adv. Hacking Suite (x1) 10289 | -6/Factory | Fabricated Prc. Energy Filter (x1) 10318 | -6/Factory | Fabricated Adv. Hacking Suite (x1) 10462 | -6/Factory | Cargo convoy interrupted 10518 | -6/Factory | System corruption reached 10% 10519 | -6/Factory | Entered Extension 10549 | -6/Extension | Lost 5 parts (1p3n1w) 10671 | -6/Extension | Lost 3 allies 10675 | -6/Extension | Lost 3 parts (2n1w) 10776 | -6/Extension | Build established: Hacker-Mutant 10827 | -6/Extension | Rescued a captive Derelict 10828 | -6/Extension | Rescued a captive Derelict 11033 | -6/Extension | Rescued a captive Derelict 11425 | -6/Extension | Spotted B-75 Beast 11445 | -6/Extension | Spotted B-75 Beast 11494 | -6/Extension | Lost 5 allies 11501 | -6/Extension | Lost 3 parts (1p1n1w) 11515 | -6/Extension | Rescued a captive Derelict 11891 | -6/Extension | Lost 6 allies 11892 | -6/Extension | Rescued A7 11958 | -6/Extension | Discovered new exit (range 10) 11959 | -6/Extension | Discovered new exit (range 6) 11968 | -6/Extension | Identified exit to Cetus 11972 | -6/Extension | Entered Cetus 11972 | -6/Cetus | Accompanied by 1 ally (A7) 11977 | -6/Cetus | Acquired a Cetus Manufacturing Module code from A7 12014 | -6/Cetus | Spotted Cetus Guard 12015 | -6/Cetus | Spotted Cetus Guard 12015 | -6/Cetus | Spotted Cetus Guard 12016 | -6/Cetus | Spotted Cetus Guard 12020 | -6/Cetus | Allies destroyed Cetus Guard 12024 | -6/Cetus | Destroyed Cetus Guard 12024 | -6/Cetus | Allies destroyed Cetus Guard 12026 | -6/Cetus | Destroyed Cetus Guard 12075 | -6/Cetus | Started Cetus Manufacturing Module 12100 | -6/Cetus | Manufactured an Enhanced Grunt 12125 | -6/Cetus | Manufactured an Enhanced Grunt 12150 | -6/Cetus | Manufactured an Enhanced Grunt 12175 | -6/Cetus | Manufactured an Enhanced Grunt 12200 | -6/Cetus | Manufactured an Enhanced Grunt 12225 | -6/Cetus | Discovered new exit (range 19) 12247 | -6/Cetus | Identified exit to Archives 12260 | -6/Cetus | Entered Archives 12260 | -6/Archives | Accompanied by 6 allies (A7) 12366 | -6/Archives | Discovered new exit (range 19) 12389 | -6/Archives | Discovered new exit (range 19) 12431 | -6/Archives | Discovered new exit (range 17) 12826 | -6/Archives | Build established: Scavenger-Mutant 12838 | -6/Archives | Identified exit to Hub_04(d) 12858 | -6/Archives | Entered Hub_04(d) 12858 | -6/Hub_04(d) | Accompanied by 5 allies 12954 | -6/Hub_04(d) | Spotted B-75 Beast 12957 | -6/Hub_04(d) | Allies destroyed B-75 Beast 13095 | -6/Hub_04(d) | Discovered new exit (range 4) 13122 | -6/Hub_04(d) | Identified exit to Factory 13136 | -6/Hub_04(d) | Discovered exit to Factory (range 18) 13152 | -6/Hub_04(d) | Network Hub disabled 13154 | -6/Hub_04(d) | Entered Factory 13154 | -5/Factory | Accompanied by 4 allies 13154 | -5/Factory | Evolved 2 slots: Utility x2 13403 | -5/Factory | Repaired Aerolev Unit 13446 | -5/Factory | Repaired Imp. Gravmag System 13508 | -5/Factory | Discovered new exit (range 8) 13510 | -5/Factory | Identified exit to Factory 13589 | -5/Factory | Discovered exit to Factory (range 18) 13695 | -5/Factory | Identified exit to Upper Caves 13755 | -5/Factory | Build established: Hacker-Scout 13881 | -5/Factory | Manually triggered Chute Trap 13881 | -5/Factory | Sucked down chute 13881 | -5/Factory | Entered Waste 13901 | -5/Waste | Spotted C-40 Crusher 13905 | -5/Waste | Found Gamma Bomb Array 13906 | -5/Waste | Warlord forces began an assault 13928 | -5/Waste | Spotted C-40 Crusher 13936 | -5/Waste | Allies destroyed C-40 Crusher 13938 | -5/Waste | Allies destroyed C-40 Crusher 13945 | -5/Waste | Spotted C-40 Crusher 13945 | -5/Waste | Spotted C-40 Crusher 13964 | -5/Waste | Allies destroyed C-40 Crusher 13974 | -5/Waste | Spotted C-40 Crusher 13995 | -5/Waste | Allies destroyed C-40 Crusher 14000 | -5/Waste | Spotted C-40 Crusher 14011 | -5/Waste | Allies destroyed C-40 Crusher 14042 | -5/Waste | Lost 11 allies 14089 | -5/Waste | Discovered new exit (range 16) 14114 | -5/Waste | Identified exit to Factory 14115 | -5/Waste | Entered Factory 14135 | -5/Factory | Discovered exit to Factory (range 6) 14344 | -5/Factory | Discovered exit to Upper Caves (range 13) 14429 | -5/Factory | Fabricated Lrn. Sensor Array (x2) 14469 | -5/Factory | Fabricated Adv. Hacking Suite (x1) 14533 | -5/Factory | Repaired Prc. Energy Filter 14674 | -5/Factory | Discovered exit to Factory (range 17) 14779 | -5/Factory | Cargo convoy interrupted 14833 | -5/Factory | Entered Upper Caves 14864 | -5/Upper Caves | Lost 11 parts (7n3u1w) 15056 | -5/Upper Caves | Spotted B-75 Beast 15083 | -5/Upper Caves | Build established: Mutant 15245 | -5/Upper Caves | Encountered a Warlord checkpoint 15258 | -5/Upper Caves | Discovered new exit (range 15) 15514 | -5/Upper Caves | Attracted the attention of an 0b10 checkpoint 15564 | -5/Upper Caves | Identified exit to Upper Caves 15565 | -5/Upper Caves | Entered another Upper Caves area 15591 | -5/Upper Caves | Discovered exit to Factory (range 10) 16115 | -5/Upper Caves | Encountered a Warlord checkpoint 16233 | -5/Upper Caves | Discovered new exit (range 4) 16532 | -5/Upper Caves | Identified exit to Warlord 16533 | -5/Upper Caves | Entered Warlord 16570 | -5/Warlord | System corruption cleaned by Quarantine Array 16863 | -5/Warlord | Met Warlord 16888 | -5/Warlord | Warlord's base attacked by MAIN.C 16982 | -5/Warlord | Found Prototype Energy Gun 16982 | -5/Warlord | Identified Vortex Rail 16985 | -5/Warlord | Found Vortex Rail 16990 | -5/Warlord | Found Vortex Rail 17074 | -5/Warlord | Found Prototype Device 17074 | -5/Warlord | Identified Exp. Focal Shield 17086 | -5/Warlord | Found Prototype Reactor 17091 | -5/Warlord | Found Prototype Processor 17103 | -5/Warlord | Found Prototype Device 17103 | -5/Warlord | Identified Minesniffer Drone Bay 17238 | -5/Warlord | Warlord forces counterattacked 17250 | -5/Warlord | Spotted Striker 17287 | -5/Warlord | Build established: Hacker-Mutant 17327 | -5/Warlord | Lost 12 allies 17332 | -5/Warlord | Spotted Striker 17375 | -5/Warlord | Opened side exit 17482 | -5/Warlord | Spotted Striker 17548 | -5/Warlord | Spotted Executioner 17557 | -5/Warlord | Spotted Striker 17563 | -5/Warlord | Warlord base infiltrated, sounded retreat 17563 | -5/Warlord | Spotted Executioner 17603 | -5/Warlord | Lost 5 allies 17664 | -5/Warlord | Spotted Striker 17668 | -5/Warlord | Spotted Executioner 17668 | -5/Warlord | Spotted Executioner 17675 | -5/Warlord | Spotted Executioner 17687 | -5/Warlord | Spotted Striker 17693 | -5/Warlord | Spotted Executioner 17712 | -5/Warlord | Spotted Executioner 17712 | -5/Warlord | Discovered new exit (range 14) 17717 | -5/Warlord | Identified exit to Proximity Caves 17728 | -5/Warlord | Lost 13 allies 17866 | -5/Warlord | Entered Proximity Caves 17938 | -4/Proximity Caves | Spotted B-86 Titan 17975 | -4/Proximity Caves | Learned Research terminal intel 18040 | -4/Proximity Caves | Discovered exit to Factory (range 10) 18065 | -4/Proximity Caves | Entered Factory 18065 | -4/Factory | Evolved 2 slots: Utility x2 18066 | -4/Factory | Identified exit to Armory 18638 | -4/Factory | Discovered new exit (range 9) 18714 | -4/Factory | Identified exit to Research 18765 | -4/Factory | Fabricated Adv. Hacking Suite? 18833 | -4/Factory | Identified exit to Upper Caves 18902 | -4/Factory | Fabricated Adv. Hacking Suite (x1) 19027 | -4/Factory | Central database locked down 19039 | -4/Factory | Entered Upper Caves 19238 | -4/Upper Caves | Attracted the attention of an 0b10 checkpoint 19360 | -4/Upper Caves | Learned 4 Research zone layouts 19847 | -4/Upper Caves | Discovered new exit (range 15) 19860 | -4/Upper Caves | Identified exit to Upper Caves 19872 | -4/Upper Caves | Spotted B-86 Titan 19884 | -4/Upper Caves | Entered another Upper Caves area 20094 | -4/Upper Caves | Learned 12 Research zone layouts 20359 | -4/Upper Caves | Learned 4 Research zone layouts 20392 | -4/Upper Caves | Discovered new exit (range 15) 20405 | -4/Upper Caves | Identified exit to Zhirov 20405 | -4/Upper Caves | Entered Zhirov 20405 | -4/Zhirov | Discovered new exit (range 3) 20418 | -4/Zhirov | Met Zhirov 20440 | -4/Zhirov | Learned location of Quarantine (-2) 20440 | -4/Zhirov | Learned location of Testing (-3) 20440 | -4/Zhirov | Learned location of Command (-1) 20446 | -4/Zhirov | Zhirov requested help retrieving the SGEMP Prototype 20464 | -4/Zhirov | Found Alien Artifact 20544 | -4/Zhirov | Found Alien Artifact 20544 | -4/Zhirov | Identified Integrated Reactor 20544 | -4/Zhirov | Installed Integrated Reactor, increased core energy generation (+10) 20572 | -4/Zhirov | Identified exit to Proximity Caves 20617 | -4/Zhirov | Entered Proximity Caves 20632 | -3/Proximity Caves | Found DCF Scrap (12 items) 20744 | -3/Proximity Caves | Discovered exit to Research (range 12) 20751 | -3/Proximity Caves | Entered Research 20751 | -3/Research | Evolved 2 slots: Utility x2 20752 | -3/Research | Identified exit to Research 20753 | -3/Research | Loaded intel: 23 terminal locations 20780 | -3/Research | Identified Exp. Target Analyzer 20914 | -3/Research | Fabricated Adv. Hacking Suite (x1) 20960 | -3/Research | Fabricated Exp. Targeting Computer (x1) 21006 | -3/Research | Fabricated Prc. Energy Filter (x1) 21046 | -3/Research | Fabricated Exp. Utility Shielding (x1) 21158 | -3/Research | Identified exit to Testing 21174 | -3/Research | Identified Transdimensional Reconstructor 21236 | -3/Research | Repaired Cld. Antigrav System 21273 | -3/Research | Found Gamma Bomb Array 21580 | -3/Research | Adv. Hacking Suite fried by hacking feedback 21598 | -3/Research | Entered Testing 21598 | -3/Testing | Accompanied by 1 ally 21611 | -3/Testing | Build established: Hacker-Scout 21703 | -3/Testing | Found Prototype Device 21711 | -3/Testing | Identified Exp. Thermal Defense Suite 21840 | -3/Testing | Warped through subspace 21869 | -3/Testing | Fabricated Exp. Core Analyzer? 21913 | -3/Testing | Found Prototype Energy Cannon 21913 | -3/Testing | Identified Hpw. Disruptor Cannon 22058 | -3/Testing | Found Prototype Energy Cannon 22118 | -3/Testing | Core integrity fell below 50% 22118 | -3/Testing | Identified Imp. Potential Cannon 22127 | -3/Testing | Released all parts (4) 22158 | -3/Testing | Lost 15 parts (1p5n8u1w) 22163 | -3/Testing | Core integrity fell below 20% 22171 | -3/Testing | Discovered exit to Research (range 10) 22176 | -3/Testing | Entered Research 22176 | -2/Research | Evolved 2 slots: Weapon x2 22379 | -2/Research | Build established: Mutant 22419 | -2/Research | Lost 6 parts (4n2u) 22442 | -2/Research | Core integrity fell below 50% 22450 | -2/Research | Core integrity fell below 20% 22454 | -2/Research | Destroyed by P-80 Master with Gamma Rifle Last Messages --------------- 22429_ Adv. Targeting Computer destroyed. 22433_ ALERT: Potential suspicious activity detected, Programmers report to Research Zone 3C. 22440_ C-30 ARC bursts open, deploying its payload. 22440_ B-74 Champion unfolds itself. 22440_ G-73 Enforcer unfolds itself. 22440_ Authchip [Processor] destroyed. 22440_ K-01 Serf collects debris. 22443_ P-80 Master resets K-01 Serf, system corruption cleaned. 22445_ Slammed into K-01 Serf. 22448_ P-80 Master resets G-73 Enforcer, system corruption cleaned. 22449_ Slug penetrates Wall. 22449_ Penetrated by Slug. 22449_ P-80 Master resets B-74 Champion, system corruption cleaned. 22451_ P-80 Master resets T-07 Excavator, system corruption cleaned. 22452_ Slug penetrates P-80 Master. 22452_ Penetrated by Slug. 22452_ K-01 Serf destroyed. 22452_ Core Analyzer destroyed. 22452_ P-80 Master resets B-74 Champion, system corruption cleaned. Map ----- +----------------------------------------------------+ | ?????????????????????????????????????????????????? | | ?????????????????????????????????????????????????? | | ?????????????????????????????????????????????????? | | ?????????????????????????????????????????????????? | | ?????????????????????????????????????????????????? | | ?????????????????????????????????????????????????? | | ?????????????????????????????????????????????????? | | ?????????????????????????????????????????????????? | | ?????????????????????????????????????????????????? | | ????###??????????????????????????????????????????? | | ???? ??????????????????????????????????????????? | | ???? ??????????????????????????????????????????? | | ???? ??????????????????????????????????????????? | | ???? ??????????????????????????????????????????? | | ???"" ??????????????????????????????????????????? | | #??"" #?????????????????????????????????????????? | | # ?"" #?????????????????????????????????????????? | | # S #???????????????????????#?????????????????? | | # "" ]#?????????????????????? #?????????????????? | | # "" #?????????????????????? #?????????????????? | | # "" #????????????????????? #?????????????????? | | ?? #???????????????????? #?????????????????? | | ???? #??????????????????? p #?????????????????? | | ######+#################### ###+####??????????? | | g % kp u u ku ????????? | | g% ! k k @ k R ????????? | | g b R h u ????????? | | pp h k ????????? | | ######+######+#############+######+#####?????????? | | ??# ## ?????????????????????????????????? | | ??# ## ???????????????????????????????? | | ### ##""" ?????????????????????????????? | | # ##"R #????????????????????????????? | | # ##""" ! #????????????????????????????? | | + ##""" #????????????????????????????? | | # ## ! #????????????????????????????? | | # #[ = #??? #????????????????????????????? | | # #########???! #????????????????????????????? | | + # ??????#####????????????????????????????? | | ### ]???????????????????????????????????????? | | #?# #?????????????????????????????????????? | | #?# """#?????????????????????????????????????? | | #?# """#?????????????????????????????????????? | | ### """#?????????????????????????????????????? | | # #?????????????????????????????????????? | | # #?????????????????????????????????????? | | # #????????????####?????????????????????? | | ####+###############? """"?????????????????????? | | # * #? """"" #?????????????????? | | / # """"" #?????????????????? | +----------------------------------------------------+ Best States ------------- Heat Dissipation 49 Coolant Potential 100 Energy Generation 43 Energy Capacity 525 Matter Stores 300 Matter Capacity 300 Sight Range 22 Robot Scan Range 20 Terrain Scan Range 20 Terrain Scan Density 210 Power Amplification 30 Armor Coverage 150 Resistance: KI 30 Utility Shielding 90 Weapon Cycling 25 Evasion (%) 58 Targeting Accuracy 20 Core Analysis 11 Armor Integrity Analysis 40 Energy Filtering 50 Particle Charging 15 Kinecelleration 40 Offensive Hacking 56 Authchip Count 7 Item Schematics ----------------- Hcp. Storage Unit | -10/Materials | Hacked Huge Storage Unit | -10/Materials | Hacked Hacking Suite | -9/Materials | Scanalyzed Imp. Heat Sink | -8/Materials | Scanalyzed Prc. Energy Filter | -7/Factory | Hacked Lrn. Sensor Array | -6/Factory | Hacked Adv. Hacking Suite | -6/Factory | Hacked Imp. Utility Shielding | -5/Factory | Scanalyzed Hvy. Reactive Plating | -5/Factory | Hacked Exp. Targeting Computer | -5/Factory | Hacked Exp. Utility Shielding | -5/Factory | Hacked Adv. Hardlight Generator | -4/Factory | Hacked Assault Drone Bay | -4/Zhirov | Free Exp. Heat Sink | -4/Zhirov | Free Exp. Optical Array | -4/Zhirov | Free Imp. Arc Thrower | -4/Zhirov | Free Exp. Signal Interpreter | -3/Research | Hacked Exp. Reaction Control System | -3/Testing | Hacked Quantum Capacitor | -3/Testing | Hacked Robot Schematics ------------------ None Fabricated ------------ Adv. System Restoration Module | x2 | -7/Factory | Preloaded Prc. Energy Filter | x1 | -7/Factory | Authchip Adv. Terrain Scanner | x2 | -6/Factory | Preloaded Adv. Hacking Suite | x1 | -6/Factory | Authchip Prc. Energy Filter | x1 | -6/Factory | Authchip Adv. Hacking Suite | x1 | -6/Factory | Authchip Lrn. Sensor Array | x2 | -5/Factory | Authchip Adv. Hacking Suite | x1 | -5/Factory | Authchip Adv. Hacking Suite | x1 | -4/Factory | Authchip Adv. Hacking Suite | x1 | -4/Factory | Authchip Adv. Hacking Suite | x1 | -3/Research | Authchip Exp. Targeting Computer | x1 | -3/Research | Authchip Prc. Energy Filter | x1 | -3/Research | Authchip Exp. Utility Shielding | x1 | -3/Research | Authchip Exp. Core Analyzer | x1 | -3/Testing | Preloaded Repaired ---------- Imp. Heat Sink | 37% | -9/Materials Imp. Medium Laser | 36% | -9/Materials Imp. Medium Laser | 73% | -9/Materials Arm. Wheel | 58% | -9/Materials Imp. Ion Engine | 67% | -9/Materials Aerolev Unit | 63% | -6/Factory Aerolev Unit | 25% | -5/Factory Imp. Gravmag System | 32% | -5/Factory Prc. Energy Filter | 60% | -5/Factory Cld. Antigrav System | 23% | -3/Research Alien Tech Used ----------------- Integrated Reactor Transdimensional Reconstructor Achievements -------------- None Challenges ------------ None Game ------ Seed HypercooledDisruptorShovel Manual? 0 Play Time 05:28:07 Cumulative 345.2 hours Start 2025.05.17 @ 14:56:09 End 2025.05.18 @ 00:07:47 Sessions 7 Manual Loads 0 Difficulty Rogue Special Mode None Game No. 184 Rogue 184 Adventurer 0 Explorer 0 Win Type - Total 4 Types 4/0/0/0/0/0/0/0/0/0 Lore% 56 Gallery% 64 Achievement% 61 Wizard Run 0 Options --------- Layout 0 ASCII 0 Keyboard 1 Movement Vi Keybinds 0 Fullscreen 2 Font 18/SmallcapsGlow Map View 76x50 Zoom Use 0% Tactical HUD 1 Map Filters NONE Filters NONE Steam 1 RUN: 8b30d2d0-25b5-4fc4-9841-a98dd024ef45